[Event "*** Titled Tuesday Blitz"]
[Site "Chess.com"]
[Date "2020.11.24"]
[Round "4"]
[White "EvgenyRomanov"]
[Black "mbachez"]
[Result "0-1"]
[WhiteElo "2577"]
[BlackElo "2424"]
[TimeControl "180+1"]
[EndTime "10:55:43 PST"]
[Termination "mbachez won by resignation"]

1. b3 {[%clk 0:03:00.9]} 1... d5 {[%clk 0:02:56.5]} 2. Bb2 {[%clk 0:03:00.2]}
2... Bg4 {[%clk 0:02:55.6]} 3. h3 {[%clk 0:02:58]} 3... Bh5 {[%clk 0:02:52]} 4.
d3 {[%clk 0:02:56.4]} 4... Nd7 {[%clk 0:02:50.3]} 5. g4 {[%clk 0:02:54.5]} 5...
Bg6 {[%clk 0:02:49.7]} 6. Nf3 {[%clk 0:02:54.9]} 6... Ngf6 {[%clk 0:02:46.2]} 7.
Nbd2 {[%clk 0:02:52.7]} 7... e6 {[%clk 0:02:45.3]} 8. e3 {[%clk 0:02:49.6]} 8...
Bd6 {[%clk 0:02:42.4]} 9. g5 {[%clk 0:02:45.2]} 9... Nh5 {[%clk 0:02:40.4]} 10.
Be2 {[%clk 0:02:44.4]} 10... O-O {[%clk 0:02:38.6]} 11. Rg1 {[%clk 0:02:43.5]}
11... f5 {[%clk 0:02:04.6]} 12. Nd4 {[%clk 0:02:38.8]} 12... Qe8 {[%clk
0:01:56.4]} 13. Nxe6 {[%clk 0:01:52.8]} 13... Qxe6 {[%clk 0:01:51.6]} 14. Bxh5
{[%clk 0:01:52.3]} 14... Be5 {[%clk 0:01:37.9]} 15. Bxe5 {[%clk 0:01:44.8]}
15... Bxh5 {[%clk 0:01:35.1]} 16. Qxh5 {[%clk 0:01:39]} 16... Qxe5 {[%clk
0:01:35.2]} 17. d4 {[%clk 0:01:37.6]} 17... Qe7 {[%clk 0:01:31.3]} 18. Qf3
{[%clk 0:01:19.3]} 18... c6 {[%clk 0:01:29]} 19. Qf4 {[%clk 0:01:17.3]} 19... a5
{[%clk 0:01:24.1]} 20. a3 {[%clk 0:01:09.8]} 20... a4 {[%clk 0:01:19.3]} 21. b4
{[%clk 0:01:08.6]} 21... Rae8 {[%clk 0:01:09.5]} 22. c4 {[%clk 0:01:05.7]} 22...
Qf7 {[%clk 0:01:03.3]} 23. c5 {[%clk 0:01:02.1]} 23... Nb8 {[%clk 0:00:57.5]}
24. f3 {[%clk 0:00:58.8]} 24... Na6 {[%clk 0:00:54.8]} 25. Nb1 {[%clk
0:00:53.6]} 25... Nc7 {[%clk 0:00:52.9]} 26. Nc3 {[%clk 0:00:53.4]} 26... Ne6
{[%clk 0:00:51.9]} 27. Qh4 {[%clk 0:00:18.4]} 27... f4 {[%clk 0:00:50.3]} 28.
O-O-O {[%clk 0:00:17.2]} 28... fxe3 {[%clk 0:00:48.9]} 29. Rgf1 {[%clk
0:00:16.5]} 29... Nf4 {[%clk 0:00:45.9]} 30. Rfe1 {[%clk 0:00:16.6]} 30... Ng2
{[%clk 0:00:37.3]} 31. Qg4 {[%clk 0:00:15.9]} 31... Nxe1 {[%clk 0:00:37.3]} 32.
Rxe1 {[%clk 0:00:16.1]} 32... Qxf3 {[%clk 0:00:37.8]} 33. Ne2 {[%clk 0:00:13.1]}
33... Qxg4 {[%clk 0:00:35]} 34. hxg4 {[%clk 0:00:14]} 34... Re4 {[%clk 0:00:35]}
35. Rg1 {[%clk 0:00:13.5]} 35... Rf2 {[%clk 0:00:34.4]} 36. Kd1 {[%clk
0:00:14.1]} 36... Rxe2 {[%clk 0:00:31.4]} 37. Kxe2 {[%clk 0:00:13.6]} 37... Rxd4
{[%clk 0:00:31.9]} 38. Kxe3 {[%clk 0:00:13.9]} 38... Rc4 {[%clk 0:00:32.2]} 39.
g6 {[%clk 0:00:14.1]} 39... hxg6 {[%clk 0:00:32.1]} 40. g5 {[%clk 0:00:13.7]}
40... Rc3+ {[%clk 0:00:32.1]} 41. Kd4 {[%clk 0:00:13.8]} 41... Rxa3 {[%clk
0:00:32.1]} 42. Ke5 {[%clk 0:00:13.5]} 42... Re3+ {[%clk 0:00:32]} 43. Kd6
{[%clk 0:00:12.8]} 43... Re4 {[%clk 0:00:31.9]} 44. Rb1 {[%clk 0:00:11.8]} 44...
a3 {[%clk 0:00:31.7]} 45. Kc7 {[%clk 0:00:11.4]} 45... a2 {[%clk 0:00:31.2]} 46.
Ra1 {[%clk 0:00:10.6]} 46... Rxb4 {[%clk 0:00:31.3]} 47. Rxa2 {[%clk 0:00:10.5]}
47... d4 {[%clk 0:00:31.4]} 48. Kd6 {[%clk 0:00:09.7]} 48... d3 {[%clk
0:00:31.1]} 49. Ke7 {[%clk 0:00:08.9]} 49... Re4+ {[%clk 0:00:30.8]} 50. Kd6
{[%clk 0:00:08.5]} 50... Rd4+ {[%clk 0:00:31.1]} 51. Ke5 {[%clk 0:00:08.6]}
51... d2 {[%clk 0:00:31.5]} 0-1

[Event "*** Titled Tuesday Blitz"]
[Site "Chess.com"]
[Date "2020.11.24"]
[Round "4"]
[White "geordie_derraugh"]
[Black "tan275"]
[Result "1-0"]
[WhiteElo "2462"]
[BlackElo "2199"]
[TimeControl "180+1"]
[EndTime "10:55:43 PST"]
[Termination "geordie_derraugh won by resignation"]

1. e4 {[%clk 0:03:00.9]} 1... c6 {[%clk 0:02:59.6]} 2. c4 {[%clk 0:03:00.5]}
2... d5 {[%clk 0:02:58.7]} 3. exd5 {[%clk 0:03:01.4]} 3... cxd5 {[%clk 0:02:59]}
4. cxd5 {[%clk 0:03:02.3]} 4... Nf6 {[%clk 0:02:59.3]} 5. Nf3 {[%clk 0:03:02.4]}
5... g6 {[%clk 0:02:58.7]} 6. Nc3 {[%clk 0:03:01.5]} 6... Bg7 {[%clk 0:02:58.8]}
7. Bc4 {[%clk 0:03:01.4]} 7... O-O {[%clk 0:02:54.7]} 8. d3 {[%clk 0:02:58.7]}
8... Nbd7 {[%clk 0:02:54.2]} 9. a4 {[%clk 0:02:51.8]} 9... Nb6 {[%clk
0:02:53.2]} 10. Qb3 {[%clk 0:02:52]} 10... e6 {[%clk 0:02:24]} 11. dxe6 {[%clk
0:02:45.5]} 11... Nxc4 {[%clk 0:02:23.5]} 12. exf7+ {[%clk 0:02:42.2]} 12...
Rxf7 {[%clk 0:02:23.4]} 13. Qxc4 {[%clk 0:02:40]} 13... Qe8+ {[%clk 0:02:23.2]}
14. Be3 {[%clk 0:02:33.1]} 14... Be6 {[%clk 0:02:20.1]} 15. Qh4 {[%clk
0:02:32.5]} 15... Ng4 {[%clk 0:02:03]} 16. O-O {[%clk 0:02:19.7]} 16... Nxe3
{[%clk 0:01:29.3]} 17. fxe3 {[%clk 0:02:18.6]} 17... Bf6 {[%clk 0:01:25.1]} 18.
Qb4 {[%clk 0:01:34.3]} 18... Qd7 {[%clk 0:01:13.4]} 19. Rad1 {[%clk 0:01:26.5]}
19... Raf8 {[%clk 0:01:10.4]} 20. Ne4 {[%clk 0:01:24.9]} 20... Be7 {[%clk
0:01:07.6]} 21. Qc3 {[%clk 0:01:21.3]} 21... Bd5 {[%clk 0:01:00.2]} 22. Qd4
{[%clk 0:01:03.8]} 22... b6 {[%clk 0:00:43.6]} 23. Nc3 {[%clk 0:00:57.2]} 23...
Bc6 {[%clk 0:00:28.7]} 24. Qxd7 {[%clk 0:00:57.1]} 24... Bxd7 {[%clk 0:00:28.9]}
25. Ne5 {[%clk 0:00:49.5]} 25... Rxf1+ {[%clk 0:00:24.2]} 26. Rxf1 {[%clk
0:00:50.4]} 26... Bf5 {[%clk 0:00:20.8]} 27. g4 {[%clk 0:00:46.5]} 27... Be6
{[%clk 0:00:15.5]} 28. Rxf8+ {[%clk 0:00:46.3]} 28... Kxf8 {[%clk 0:00:14.8]}
29. Nc6 {[%clk 0:00:43.3]} 29... Bc5 {[%clk 0:00:14]} 30. d4 {[%clk 0:00:43.3]}
30... Bb4 {[%clk 0:00:11.1]} 31. Nxa7 {[%clk 0:00:42.6]} 31... Bd7 {[%clk
0:00:11]} 32. h3 {[%clk 0:00:38.2]} 32... Bxc3 {[%clk 0:00:09.9]} 33. bxc3
{[%clk 0:00:39.1]} 33... Bxa4 {[%clk 0:00:10.1]} 34. Nc8 {[%clk 0:00:37.5]}
34... b5 {[%clk 0:00:08.9]} 35. e4 {[%clk 0:00:35.8]} 35... Kf7 {[%clk
0:00:07.9]} 36. Kf2 {[%clk 0:00:34.6]} 36... Ke6 {[%clk 0:00:06.7]} 37. Ke3
{[%clk 0:00:31.2]} 37... Bb3 {[%clk 0:00:06.7]} 38. Na7 {[%clk 0:00:26.4]} 38...
Bc4 {[%clk 0:00:06.7]} 39. Nc6 {[%clk 0:00:25.3]} 39... h5 {[%clk 0:00:04.1]}
40. gxh5 {[%clk 0:00:25.1]} 40... gxh5 {[%clk 0:00:04.1]} 41. h4 {[%clk
0:00:25.5]} 41... Kd6 {[%clk 0:00:02.1]} 42. Ne5 {[%clk 0:00:25.2]} 42... Bf1
{[%clk 0:00:01.9]} 43. Ng6 {[%clk 0:00:21.2]} 43... Bh3 {[%clk 0:00:02]} 44. Nf4
{[%clk 0:00:19.9]} 44... Bg4 {[%clk 0:00:02.9]} 45. e5+ {[%clk 0:00:20]} 45...
Ke7 {[%clk 0:00:03]} 46. d5 {[%clk 0:00:19.8]} 46... Kd7 {[%clk 0:00:02.1]} 47.
Kd4 {[%clk 0:00:20]} 47... Kc7 {[%clk 0:00:02]} 48. Kc5 {[%clk 0:00:20.4]} 48...
Kd7 {[%clk 0:00:02.3]} 49. Kxb5 {[%clk 0:00:20.6]} 1-0

[Event "*** Titled Tuesday Blitz"]
[Site "Chess.com"]
[Date "2020.11.24"]
[Round "4"]
[White "Tactictic"]
[Black "hawes33"]
[Result "0-1"]
[WhiteElo "2418"]
[BlackElo "2231"]
[TimeControl "180+1"]
[EndTime "10:55:43 PST"]
[Termination "hawes33 won by checkmate"]

1. e4 {[%clk 0:03:00.9]} 1... c5 {[%clk 0:03:00.9]} 2. Nf3 {[%clk 0:03:00.3]}
2... e6 {[%clk 0:03:00.9]} 3. d4 {[%clk 0:02:58.4]} 3... cxd4 {[%clk 0:03:01.7]}
4. Nxd4 {[%clk 0:02:55.8]} 4... a6 {[%clk 0:03:01.6]} 5. Bd3 {[%clk 0:02:53.5]}
5... b5 {[%clk 0:02:50.2]} 6. O-O {[%clk 0:02:46.4]} 6... Bb7 {[%clk 0:02:49.9]}
7. a4 {[%clk 0:02:42.1]} 7... bxa4 {[%clk 0:02:47.5]} 8. Rxa4 {[%clk 0:02:23.4]}
8... Nf6 {[%clk 0:02:43.8]} 9. Nd2 {[%clk 0:02:13.5]} 9... Be7 {[%clk 0:02:42]}
10. Re1 {[%clk 0:02:08.9]} 10... d6 {[%clk 0:02:40.5]} 11. Nc4 {[%clk
0:02:08.8]} 11... Nbd7 {[%clk 0:02:36.8]} 12. Na5 {[%clk 0:02:07.2]} 12... Qc8
{[%clk 0:02:33.3]} 13. Nxb7 {[%clk 0:02:04]} 13... Qxb7 {[%clk 0:02:34.2]} 14.
b4 {[%clk 0:02:00]} 14... O-O {[%clk 0:02:33.5]} 15. c3 {[%clk 0:01:58.2]} 15...
Rfc8 {[%clk 0:02:32.9]} 16. Bd2 {[%clk 0:01:57.7]} 16... Ne5 {[%clk 0:02:32.3]}
17. Bc2 {[%clk 0:01:55.4]} 17... Nc4 {[%clk 0:02:32.4]} 18. Bc1 {[%clk
0:01:55.2]} 18... Nb6 {[%clk 0:02:27.6]} 19. Ra3 {[%clk 0:01:54.4]} 19... Nc4
{[%clk 0:02:27.9]} 20. Ra1 {[%clk 0:01:53.6]} 20... Ne5 {[%clk 0:02:23.8]} 21.
f4 {[%clk 0:01:49.5]} 21... Ned7 {[%clk 0:02:18.2]} 22. Bd2 {[%clk 0:01:45.9]}
22... Nb6 {[%clk 0:02:17.2]} 23. Qf3 {[%clk 0:01:41.5]} 23... Nc4 {[%clk
0:02:17.1]} 24. Bc1 {[%clk 0:01:41.9]} 24... a5 {[%clk 0:02:02.4]} 25. bxa5
{[%clk 0:01:26.9]} 25... Rxa5 {[%clk 0:02:01.5]} 26. Rb1 {[%clk 0:01:27]} 26...
Qa7 {[%clk 0:02:00.3]} 27. Kh1 {[%clk 0:01:25.3]} 27... h5 {[%clk 0:01:55.9]}
28. e5 {[%clk 0:01:23.9]} 28... dxe5 {[%clk 0:01:52.9]} 29. fxe5 {[%clk
0:01:24.8]} 29... Ng4 {[%clk 0:01:52]} 30. h3 {[%clk 0:01:23.3]} 30... Ncxe5
{[%clk 0:01:49.4]} 31. Qf4 {[%clk 0:01:15.4]} 31... Rxc3 {[%clk 0:01:37.2]} 32.
hxg4 {[%clk 0:01:07.3]} 32... Nxg4 {[%clk 0:01:36.9]} 33. Rb8+ {[%clk
0:01:03.9]} 33... Bf8 {[%clk 0:01:34.7]} 34. Qd6 {[%clk 0:00:24.2]} 34... Rxc2
{[%clk 0:00:42.4]} 35. Rxf8+ {[%clk 0:00:23.4]} 35... Kh7 {[%clk 0:00:41.8]} 36.
Nxc2 {[%clk 0:00:23.6]} 36... Qf2 {[%clk 0:00:31.1]} 37. Bf4 {[%clk 0:00:13.1]}
37... Qxc2 {[%clk 0:00:20.3]} 38. Qd4 {[%clk 0:00:13.2]} 38... Rf5 {[%clk
0:00:15.3]} 39. Qe4 {[%clk 0:00:07.9]} 39... Nf2+ {[%clk 0:00:14.3]} 40. Kg1
{[%clk 0:00:08]} 40... Nxe4 {[%clk 0:00:15.2]} 41. Be3 {[%clk 0:00:08.3]} 41...
Qd3 {[%clk 0:00:14.8]} 42. Rc8 {[%clk 0:00:07.2]} 42... Ng3 {[%clk 0:00:14.4]}
43. Bf2 {[%clk 0:00:06.1]} 43... h4 {[%clk 0:00:14.1]} 44. Bxg3 {[%clk
0:00:02.9]} 44... hxg3 {[%clk 0:00:14.2]} 45. Rcc1 {[%clk 0:00:01.6]} 45... Qd4+
{[%clk 0:00:14]} 46. Kh1 {[%clk 0:00:01.7]} 46... Rh5# {[%clk 0:00:14.4]} 0-1

[Event "*** Titled Tuesday Blitz"]
[Site "Chess.com"]
[Date "2020.11.24"]
[Round "4"]
[White "isainz"]
[Black "svilson23"]
[Result "1-0"]
[WhiteElo "2048"]
[BlackElo "2245"]
[TimeControl "180+1"]
[EndTime "10:55:43 PST"]
[Termination "isainz won on time"]

1. e4 {[%clk 0:02:56.8]} 1... c5 {[%clk 0:02:59.5]} 2. Nf3 {[%clk 0:02:53.3]}
2... Nc6 {[%clk 0:02:59.1]} 3. d4 {[%clk 0:02:47.7]} 3... cxd4 {[%clk 0:03:00]}
4. Nxd4 {[%clk 0:02:47.7]} 4... e5 {[%clk 0:03:00.5]} 5. Nb5 {[%clk 0:02:47.3]}
5... d6 {[%clk 0:03:01.1]} 6. c4 {[%clk 0:02:46.5]} 6... Be7 {[%clk 0:03:00.7]}
7. N1c3 {[%clk 0:02:46.7]} 7... f5 {[%clk 0:03:01.2]} 8. exf5 {[%clk 0:02:42.7]}
8... Bxf5 {[%clk 0:03:02.1]} 9. Nd5 {[%clk 0:02:42]} 9... Rc8 {[%clk 0:02:35.3]}
10. Be3 {[%clk 0:02:35.4]} 10... Nf6 {[%clk 0:02:30]} 11. Nxe7 {[%clk 0:02:28]}
11... Kxe7 {[%clk 0:02:30.9]} 12. c5 {[%clk 0:02:18]} 12... d5 {[%clk 0:02:18]}
13. Nd6 {[%clk 0:02:09.3]} 13... Be6 {[%clk 0:02:10.8]} 14. Nxc8+ {[%clk
0:02:05.6]} 14... Qxc8 {[%clk 0:02:11.7]} 15. f3 {[%clk 0:01:57.9]} 15... d4
{[%clk 0:02:04.1]} 16. Bd2 {[%clk 0:01:49.5]} 16... Re8 {[%clk 0:01:48.9]} 17.
Bd3 {[%clk 0:01:46.6]} 17... Kf7 {[%clk 0:01:44.3]} 18. O-O {[%clk 0:01:41.2]}
18... Kg8 {[%clk 0:01:44.8]} 19. Qc2 {[%clk 0:01:38.1]} 19... Kh8 {[%clk
0:01:33.3]} 20. b4 {[%clk 0:01:33.7]} 20... Qd8 {[%clk 0:01:09.6]} 21. Rae1
{[%clk 0:01:27.7]} 21... Bf7 {[%clk 0:01:03.2]} 22. b5 {[%clk 0:01:19]} 22...
Nb8 {[%clk 0:01:00.7]} 23. Bg5 {[%clk 0:01:13.3]} 23... Qd5 {[%clk 0:00:57.1]}
24. Bxf6 {[%clk 0:01:02.5]} 24... gxf6 {[%clk 0:00:58]} 25. Be4 {[%clk
0:01:02.6]} 25... Qc4 {[%clk 0:00:45.3]} 26. Qxc4 {[%clk 0:00:59]} 26... Bxc4
{[%clk 0:00:46.2]} 27. Rf2 {[%clk 0:00:51.4]} 27... Bxb5 {[%clk 0:00:46]} 28.
Bxb7 {[%clk 0:00:51.1]} 28... Nc6 {[%clk 0:00:45.2]} 29. Bxc6 {[%clk 0:00:50.5]}
29... Bxc6 {[%clk 0:00:44.8]} 30. Rb2 {[%clk 0:00:50.6]} 30... d3 {[%clk
0:00:41.9]} 31. Kf2 {[%clk 0:00:50.5]} 31... f5 {[%clk 0:00:41.6]} 32. Ke3
{[%clk 0:00:49.4]} 32... e4 {[%clk 0:00:41.3]} 33. fxe4 {[%clk 0:00:48.6]} 33...
fxe4 {[%clk 0:00:35.5]} 34. Rf1 {[%clk 0:00:47.2]} 34... Kg7 {[%clk 0:00:32.1]}
35. Rf4 {[%clk 0:00:44.8]} 35... Re5 {[%clk 0:00:30.1]} 36. Rbf2 {[%clk
0:00:42.1]} 36... Rxc5 {[%clk 0:00:21.9]} 37. Rg4+ {[%clk 0:00:40.7]} 37... Kh6
{[%clk 0:00:19.1]} 38. Rf6+ {[%clk 0:00:40.4]} 38... Kh5 {[%clk 0:00:18.4]} 39.
Rg7 {[%clk 0:00:39.2]} 39... Rd5 {[%clk 0:00:10.1]} 40. g4+ {[%clk 0:00:31]}
40... Kh4 {[%clk 0:00:03.1]} 41. Rxh7+ {[%clk 0:00:31.2]} 41... Kg5 {[%clk
0:00:02.5]} 42. Rf1 {[%clk 0:00:26.5]} 42... d2 {[%clk 0:00:02.5]} 43. Rd1
{[%clk 0:00:26.4]} 43... Rd3+ {[%clk 0:00:02.5]} 44. Ke2 {[%clk 0:00:25.1]}
44... Bb5 {[%clk 0:00:02.6]} 45. Rxd2 {[%clk 0:00:22.7]} 45... Rh3+ {[%clk
0:00:02.4]} 46. Ke1 {[%clk 0:00:18.9]} 46... Rxh7 {[%clk 0:00:01.2]} 47. Rd5+
{[%clk 0:00:18.5]} 47... Kxg4 {[%clk 0:00:01.6]} 48. Rxb5 {[%clk 0:00:19.3]}
48... Kf3 {[%clk 0:00:01.4]} 49. Rf5+ {[%clk 0:00:17.5]} 1-0

[Event "*** Titled Tuesday Blitz"]
[Site "Chess.com"]
[Date "2020.11.24"]
[Round "4"]
[White "BegmuratovKh2010"]
[Black "tylityli"]
[Result "1-0"]
[WhiteElo "2506"]
[BlackElo "2332"]
[TimeControl "180+1"]
[EndTime "10:55:44 PST"]
[Termination "BegmuratovKh2010 won on time"]

1. d4 {[%clk 0:03:00.9]} 1... Nf6 {[%clk 0:02:58]} 2. c4 {[%clk 0:02:59.9]} 2...
e6 {[%clk 0:02:56.7]} 3. Nf3 {[%clk 0:02:59]} 3... Bb4+ {[%clk 0:02:53.3]} 4.
Bd2 {[%clk 0:02:57.2]} 4... c5 {[%clk 0:02:48.3]} 5. Bxb4 {[%clk 0:02:54.3]}
5... cxb4 {[%clk 0:02:47.5]} 6. Nbd2 {[%clk 0:02:54.2]} 6... O-O {[%clk
0:02:44.6]} 7. e4 {[%clk 0:02:51.1]} 7... d6 {[%clk 0:02:42.5]} 8. Bd3 {[%clk
0:02:50.2]} 8... Nc6 {[%clk 0:02:38.1]} 9. O-O {[%clk 0:02:49.1]} 9... e5 {[%clk
0:02:37.1]} 10. d5 {[%clk 0:02:48.3]} 10... Ne7 {[%clk 0:02:36.1]} 11. c5 {[%clk
0:02:45.5]} 11... Ng6 {[%clk 0:02:35.4]} 12. cxd6 {[%clk 0:02:44.5]} 12... Qxd6
{[%clk 0:02:34.2]} 13. Nc4 {[%clk 0:02:44.1]} 13... Qe7 {[%clk 0:02:29.7]} 14.
Qb3 {[%clk 0:02:21.7]} 14... Bg4 {[%clk 0:02:20.3]} 15. Nfd2 {[%clk 0:02:09.9]}
15... Nf4 {[%clk 0:02:16]} 16. f3 {[%clk 0:02:06.9]} 16... Bd7 {[%clk
0:02:05.2]} 17. Kh1 {[%clk 0:01:52.5]} 17... N6h5 {[%clk 0:01:59.9]} 18. g3
{[%clk 0:01:48.8]} 18... Nh3 {[%clk 0:01:44.6]} 19. Ne3 {[%clk 0:01:35.8]} 19...
Qg5 {[%clk 0:01:41]} 20. Be2 {[%clk 0:01:13.2]} 20... a5 {[%clk 0:01:37.2]} 21.
a4 {[%clk 0:01:00.7]} 21... Qh6 {[%clk 0:01:17.2]} 22. Kg2 {[%clk 0:00:29.4]}
22... N3f4+ {[%clk 0:01:11]} 23. gxf4 {[%clk 0:00:22.5]} 23... Nxf4+ {[%clk
0:01:09.9]} 24. Kh1 {[%clk 0:00:21.5]} 24... Nxe2 {[%clk 0:01:05.5]} 25. Rf2
{[%clk 0:00:19.4]} 25... Nd4 {[%clk 0:00:53]} 26. Qd3 {[%clk 0:00:15.6]} 26...
Ra6 {[%clk 0:00:52.5]} 27. Rg1 {[%clk 0:00:13.8]} 27... Rc8 {[%clk 0:00:46.8]}
28. f4 {[%clk 0:00:10.6]} 28... exf4 {[%clk 0:00:38.5]} 29. Ng4 {[%clk
0:00:10.7]} 29... Bxg4 {[%clk 0:00:34.5]} 30. Rxg4 {[%clk 0:00:11.6]} 30... Rc1+
{[%clk 0:00:26.3]} 31. Nf1 {[%clk 0:00:10.6]} 31... Qh5 {[%clk 0:00:06.5]} 32.
Rgxf4 {[%clk 0:00:09]} 32... Rh6 {[%clk 0:00:02.7]} 33. d6 {[%clk 0:00:06.6]}
33... Rxf1+ {[%clk 0:00:02]} 34. Qxf1 {[%clk 0:00:05.8]} 34... Rxd6 {[%clk
0:00:01.8]} 35. Rxf7 {[%clk 0:00:05.2]} 35... h6 {[%clk 0:00:02]} 36. Rf8+
{[%clk 0:00:03.7]} 36... Kh7 {[%clk 0:00:02.1]} 37. Rg2 {[%clk 0:00:04.6]} 1-0

[Event "*** Titled Tuesday Blitz"]
[Site "Chess.com"]
[Date "2020.11.24"]
[Round "4"]
[White "sergeikim"]
[Black "HrvojeZagreb"]
[Result "1/2-1/2"]
[WhiteElo "2537"]
[BlackElo "2269"]
[TimeControl "180+1"]
[EndTime "10:55:45 PST"]
[Termination "Game drawn by repetition"]

1. d4 {[%clk 0:03:00.9]} 1... e6 {[%clk 0:02:58.9]} 2. c4 {[%clk 0:03:00.8]}
2... f5 {[%clk 0:02:58.3]} 3. g3 {[%clk 0:03:00.1]} 3... Nf6 {[%clk 0:02:57.6]}
4. Bg2 {[%clk 0:02:58.7]} 4... Be7 {[%clk 0:02:57.5]} 5. Nh3 {[%clk 0:02:58]}
5... O-O {[%clk 0:02:56.7]} 6. O-O {[%clk 0:02:57.9]} 6... d6 {[%clk 0:02:55.7]}
7. Nf4 {[%clk 0:02:57.5]} 7... c6 {[%clk 0:02:54.9]} 8. Nc3 {[%clk 0:02:56]}
8... e5 {[%clk 0:02:54]} 9. dxe5 {[%clk 0:02:54.8]} 9... dxe5 {[%clk 0:02:54.9]}
10. Nd3 {[%clk 0:02:54.7]} 10... Qc7 {[%clk 0:02:51.6]} 11. e4 {[%clk
0:02:43.4]} 11... fxe4 {[%clk 0:02:20.5]} 12. Nxe4 {[%clk 0:02:42.3]} 12... Nxe4
{[%clk 0:02:20.5]} 13. Bxe4 {[%clk 0:02:41.4]} 13... Bf5 {[%clk 0:02:19.4]} 14.
Qe2 {[%clk 0:02:33.6]} 14... Na6 {[%clk 0:02:14.9]} 15. Bd2 {[%clk 0:02:23.8]}
15... Nc5 {[%clk 0:02:09.9]} 16. Nxc5 {[%clk 0:02:18.2]} 16... Bxc5 {[%clk
0:02:10.8]} 17. Bc3 {[%clk 0:02:18.4]} 17... Bd4 {[%clk 0:01:30.4]} 18. Rac1
{[%clk 0:02:15.1]} 18... Qf7 {[%clk 0:01:11.3]} 19. Bxf5 {[%clk 0:01:33.5]}
19... Qxf5 {[%clk 0:01:12.2]} 20. Bxd4 {[%clk 0:01:33.8]} 20... exd4 {[%clk
0:01:11.6]} 21. c5 {[%clk 0:01:31.9]} 21... Rad8 {[%clk 0:01:04.5]} 22. Qc4+
{[%clk 0:01:24.8]} 22... Kh8 {[%clk 0:00:59.8]} 23. Rcd1 {[%clk 0:01:23.8]}
23... d3 {[%clk 0:00:58.3]} 24. Rd2 {[%clk 0:01:19.6]} 24... Rd5 {[%clk
0:00:52.5]} 25. b4 {[%clk 0:01:18.6]} 25... a5 {[%clk 0:00:51]} 26. a3 {[%clk
0:01:17.8]} 26... axb4 {[%clk 0:00:51]} 27. axb4 {[%clk 0:01:17.8]} 27... Rfd8
{[%clk 0:00:50.4]} 28. Re1 {[%clk 0:01:16.7]} 28... h6 {[%clk 0:00:40.6]} 29.
Kg2 {[%clk 0:01:14.2]} 29... Rd4 {[%clk 0:00:39.8]} 30. Re8+ {[%clk 0:01:07.2]}
30... Rxe8 {[%clk 0:00:06.3]} 31. Qxd4 {[%clk 0:01:06.7]} 31... Re2 {[%clk
0:00:06.3]} 32. Rxd3 {[%clk 0:01:02.4]} 32... Rxf2+ {[%clk 0:00:06.4]} 33. Qxf2
{[%clk 0:01:00.9]} 33... Qxd3 {[%clk 0:00:07]} 34. Qf4 {[%clk 0:00:59.7]} 34...
Qd5+ {[%clk 0:00:06.2]} 35. Kf2 {[%clk 0:00:56.3]} 35... Qa2+ {[%clk 0:00:05.5]}
36. Kg1 {[%clk 0:00:54.5]} 36... Qb1+ {[%clk 0:00:05.5]} 37. Kg2 {[%clk
0:00:54.2]} 37... Qc2+ {[%clk 0:00:05.2]} 38. Kh3 {[%clk 0:00:53.9]} 38... Qg6
{[%clk 0:00:04.7]} 39. g4 {[%clk 0:00:50.3]} 39... Qd3+ {[%clk 0:00:04.2]} 40.
Kg2 {[%clk 0:00:46.1]} 40... Qe2+ {[%clk 0:00:04.4]} 41. Kg3 {[%clk 0:00:45.8]}
41... Qd3+ {[%clk 0:00:04.3]} 42. Qf3 {[%clk 0:00:42.9]} 42... Qc4 {[%clk
0:00:03.7]} 43. Qf8+ {[%clk 0:00:37.4]} 43... Kh7 {[%clk 0:00:02.9]} 44. Qf5+
{[%clk 0:00:36.8]} 44... Kh8 {[%clk 0:00:03.3]} 45. Qc8+ {[%clk 0:00:34]} 45...
Kh7 {[%clk 0:00:03.7]} 46. Qxb7 {[%clk 0:00:34.3]} 46... Qd3+ {[%clk 0:00:04]}
47. Kf4 {[%clk 0:00:33.9]} 47... Qd4+ {[%clk 0:00:02.7]} 48. Kf3 {[%clk
0:00:33.7]} 48... Qd3+ {[%clk 0:00:03]} 49. Kf2 {[%clk 0:00:32.7]} 49... Qd4+
{[%clk 0:00:03.1]} 50. Kf3 {[%clk 0:00:31.6]} 50... Qd3+ {[%clk 0:00:03.3]} 51.
Kf4 {[%clk 0:00:31.4]} 51... Qd4+ {[%clk 0:00:03.7]} 52. Kf3 {[%clk 0:00:31.3]}
1/2-1/2

[Event "*** Titled Tuesday Blitz"]
[Site "Chess.com"]
[Date "2020.11.24"]
[Round "4"]
[White "Satscho"]
[Black "esskeettit"]
[Result "1-0"]
[WhiteElo "2321"]
[BlackElo "2477"]
[TimeControl "180+1"]
[EndTime "10:55:47 PST"]
[Termination "Satscho won by checkmate"]

1. e4 {[%clk 0:03:00.9]} 1... c5 {[%clk 0:02:59.9]} 2. Nf3 {[%clk 0:03:00.9]}
2... Nc6 {[%clk 0:02:58.4]} 3. d4 {[%clk 0:03:01.1]} 3... cxd4 {[%clk
0:02:59.3]} 4. Nxd4 {[%clk 0:03:00.7]} 4... g6 {[%clk 0:02:59]} 5. c4 {[%clk
0:02:58.3]} 5... Nf6 {[%clk 0:02:58.1]} 6. Nc2 {[%clk 0:02:59]} 6... Bg7 {[%clk
0:02:55.5]} 7. Nc3 {[%clk 0:02:57.1]} 7... O-O {[%clk 0:02:55.1]} 8. Be2 {[%clk
0:02:56.6]} 8... d6 {[%clk 0:02:55.3]} 9. O-O {[%clk 0:02:56.7]} 9... Be6 {[%clk
0:02:56]} 10. Be3 {[%clk 0:02:54.6]} 10... Rc8 {[%clk 0:02:55.6]} 11. Rc1 {[%clk
0:02:54.3]} 11... a6 {[%clk 0:02:55.5]} 12. b3 {[%clk 0:02:54.4]} 12... Nd7
{[%clk 0:02:49.9]} 13. Qd2 {[%clk 0:02:53.3]} 13... Qa5 {[%clk 0:02:41.4]} 14.
Nd5 {[%clk 0:02:37.4]} 14... Qxd2 {[%clk 0:02:37.8]} 15. Bxd2 {[%clk 0:02:38.3]}
15... Nc5 {[%clk 0:02:33.3]} 16. f3 {[%clk 0:02:16.4]} 16... f5 {[%clk
0:02:32.3]} 17. exf5 {[%clk 0:02:09.3]} 17... Bxf5 {[%clk 0:02:33.2]} 18. Nce3
{[%clk 0:02:00.1]} 18... Bd7 {[%clk 0:02:14.8]} 19. b4 {[%clk 0:01:47.9]} 19...
Ne6 {[%clk 0:01:52.6]} 20. b5 {[%clk 0:01:47.2]} 20... Ncd4 {[%clk 0:01:40]} 21.
Bd3 {[%clk 0:01:39.1]} 21... Rce8 {[%clk 0:01:26.6]} 22. bxa6 {[%clk 0:01:22.8]}
22... bxa6 {[%clk 0:01:25.4]} 23. Rb1 {[%clk 0:01:16.8]} 23... Nc5 {[%clk
0:01:18.9]} 24. Be4 {[%clk 0:00:59.3]} 24... Nxe4 {[%clk 0:00:56.8]} 25. fxe4
{[%clk 0:01:00.2]} 25... e6 {[%clk 0:00:52.4]} 26. Nc7 {[%clk 0:00:54.9]} 26...
Rxf1+ {[%clk 0:00:42.4]} 27. Nxf1 {[%clk 0:00:43.6]} 27... Rc8 {[%clk
0:00:40.3]} 28. Nxa6 {[%clk 0:00:24.9]} 28... Rxc4 {[%clk 0:00:40]} 29. Rb8+
{[%clk 0:00:25.5]} 29... Kf7 {[%clk 0:00:30.6]} 30. Rb7 {[%clk 0:00:23.9]} 30...
Ke8 {[%clk 0:00:28.5]} 31. Nb8 {[%clk 0:00:23]} 31... Bb5 {[%clk 0:00:20.6]} 32.
Rxg7 {[%clk 0:00:18.2]} 32... Rc2 {[%clk 0:00:20.8]} 33. Bg5 {[%clk 0:00:13.3]}
33... Ne2+ {[%clk 0:00:18.5]} 34. Kf2 {[%clk 0:00:13.5]} 34... Nc3+ {[%clk
0:00:12.3]} 35. Kg3 {[%clk 0:00:09]} 35... Bxf1 {[%clk 0:00:11.2]} 36. Re7+
{[%clk 0:00:09.3]} 36... Kf8 {[%clk 0:00:06.3]} 37. Nd7+ {[%clk 0:00:08.6]}
37... Kg8 {[%clk 0:00:06.8]} 38. Nf6+ {[%clk 0:00:08.8]} 38... Kf8 {[%clk
0:00:07.2]} 39. Nxh7+ {[%clk 0:00:08.5]} 39... Kg8 {[%clk 0:00:07.6]} 40. Nf6+
{[%clk 0:00:08]} 40... Kf8 {[%clk 0:00:08]} 41. Nd7+ {[%clk 0:00:06.6]} 41...
Kg8 {[%clk 0:00:08.4]} 42. Re8+ {[%clk 0:00:04]} 42... Kg7 {[%clk 0:00:03.6]}
43. Bf6+ {[%clk 0:00:04.1]} 43... Kf7 {[%clk 0:00:03.3]} 44. Rf8# {[%clk
0:00:04.6]} 1-0